{"text_format":"3","workbook":"xlsx","n_sheets":1,"sheets":["Особистий місячний бюджет"],"read":"whole","date_system":"1900"}

{"sheet":"Особистий місячний бюджет","index":0,"n_rows":62,"n_cols":10,"rows_kept":62,"merged":[[0,1,0,9],[2,1,4,1],[2,2,2,3],[2,7,2,8],[3,2,3,3],[3,7,3,8],[4,2,4,3],[4,6,4,8],[5,1,7,1],[5,2,5,3],[5,7,5,8],[6,2,6,3],[6,7,6,8],[7,2,7,3],[7,6,7,8],[20,6,20,9],[21,1,21,4],[29,6,29,9],[31,1,31,4],[36,6,36,9],[38,1,38,4],[42,6,42,9],[44,1,44,4],[48,6,48,9],[52,1,52,4],[55,6,55,9]]}
[null,"Особистий місячний бюджет"]
[]
[null,"ПРОГНОЗОВАНИЙ ЩОМІСЯЧНИЙ ДОХІД","Дохід 1",null,{"v":2500,"d":"2,500₴"},null,"ПРОГНОЗОВАНІ ВИТРАТИ, УСЬОГО ","(різниця прогнозованого доходу й витрат)",null,{"$f":"SUM(C21,C31,C38,C44,C52,C62,H20,H29,H36,H42,H48,H55)","v":{"v":2060,"d":"2,060₴"}}]
[null,null,"Додатковий дохід",null,{"v":500,"d":"500₴"},null,"ФАКТИЧНІ ВИТРАТИ, УСЬОГО ","(різниця фактичного доходу й витрат)",null,{"$f":"SUM(D21,D31,D38,D44,D52,D62,I20,I29,I36,I42,I48,I55)","v":{"v":2040,"d":"2,040₴"}}]
[null,null,"Загальний щомісячний дохід",null,{"$f":"SUM(E3:E4)","v":{"v":3000,"d":"3,000₴"}},null,"Різниця витрат, усього",null,null,{"$f":"SUM(E21,E31,E38,E44,E52,E62,J20,J29,J36,J42,J48,J55)","v":{"v":20,"d":"20₴"}}]
[null,"ФАКТИЧНИЙ ЩОМІСЯЧНИЙ ДОХІД","Дохід 1",null,{"v":2500,"d":"2,500₴"},null,"ПРОГНОЗОВАНИЙ ЗАЛИШОК","(різниця прогнозованого доходу й витрат)",null,{"$f":"E5-J3","v":{"v":940,"d":"940₴"}}]
[null,null,"Додатковий дохід",null,{"v":500,"d":"500₴"},null,"ФАКТИЧНИЙ ЗАЛИШОК","(різниця фактичного доходу й витрат)",null,{"$f":"E8-J4","v":{"v":960,"d":"960₴"}}]
[null,null,"Загальний щомісячний дохід",null,{"$f":"SUM(E6:E7)","v":{"v":3000,"d":"3,000₴"}},null,"РІЗНИЦЯ ЗАЛИШКІВ (фактичного й прогнозованого)",null,null,{"$f":"J7-J6","v":{"v":20,"d":"20₴"}}]
[]
[null,"ПОСЛУГИ","Прогнозовані витрати","Фактичні витрати","Різниця",null,"РОЗВАГИ","Прогнозовані витрати","Фактичні витрати","Різниця"]
[null,"Іпотека або оренда",{"v":1500,"d":"1,500₴"},{"v":1400,"d":"1,400₴"},{"$f":"Побут[[#This Row],[Прогнозовані витрати]]-Побут[[#This Row],[Фактичні витрати]]","v":{"v":100,"d":"100₴"}},null,"Відео/DVD",{"v":0,"d":"0₴"},{"v":50,"d":"50₴"},{"$f":"Розваги[[#This Row],[Прогнозовані витрати]]-Розваги[[#This Row],[Фактичні витрати]]","v":{"v":-50,"d":"-50₴"}}]
[null,"Номер телефону",{"v":60,"d":"60₴"},{"v":100,"d":"100₴"},{"$f":"Побут[[#This Row],[Прогнозовані витрати]]-Побут[[#This Row],[Фактичні витрати]]","v":{"v":-40,"d":"-40₴"}},null,"Компакт-диски",null,null,{"$f":"Розваги[[#This Row],[Прогнозовані витрати]]-Розваги[[#This Row],[Фактичні витрати]]","v":{"v":0,"d":"0₴"}}]
[null,"Електроенергія",{"v":50,"d":"50₴"},{"v":60,"d":"60₴"},{"$f":"Побут[[#This Row],[Прогнозовані витрати]]-Побут[[#This Row],[Фактичні витрати]]","v":{"v":-10,"d":"-10₴"}},null,"Фільми",null,null,{"$f":"Розваги[[#This Row],[Прогнозовані витрати]]-Розваги[[#This Row],[Фактичні витрати]]","v":{"v":0,"d":"0₴"}}]
[null,"Газ",{"v":200,"d":"200₴"},{"v":180,"d":"180₴"},{"$f":"Побут[[#This Row],[Прогнозовані витрати]]-Побут[[#This Row],[Фактичні витрати]]","v":{"v":20,"d":"20₴"}},null,"Концерти",null,null,{"$f":"Розваги[[#This Row],[Прогнозовані витрати]]-Розваги[[#This Row],[Фактичні витрати]]","v":{"v":0,"d":"0₴"}}]
[null,"Постачання води й водовідведення",null,null,{"$f":"Побут[[#This Row],[Прогнозовані витрати]]-Побут[[#This Row],[Фактичні витрати]]","v":{"v":0,"d":"0₴"}},null,"Спортивні події",null,null,{"$f":"Розваги[[#This Row],[Прогнозовані витрати]]-Розваги[[#This Row],[Фактичні витрати]]","v":{"v":0,"d":"0₴"}}]
[null,"Кабельне ТБ",null,null,{"$f":"Побут[[#This Row],[Прогнозовані витрати]]-Побут[[#This Row],[Фактичні витрати]]","v":{"v":0,"d":"0₴"}},null,"Театри",null,null,{"$f":"Розваги[[#This Row],[Прогнозовані витрати]]-Розваги[[#This Row],[Фактичні витрати]]","v":{"v":0,"d":"0₴"}}]
[null,"Вивезення сміття",null,null,{"$f":"Побут[[#This Row],[Прогнозовані витрати]]-Побут[[#This Row],[Фактичні витрати]]","v":{"v":0,"d":"0₴"}},null,"Інші",null,null,{"$f":"Розваги[[#This Row],[Прогнозовані витрати]]-Розваги[[#This Row],[Фактичні витрати]]","v":{"v":0,"d":"0₴"}}]
[null,"Обслуговування або ремонт",null,null,{"$f":"Побут[[#This Row],[Прогнозовані витрати]]-Побут[[#This Row],[Фактичні витрати]]","v":{"v":0,"d":"0₴"}},null,"Інше",null,null,{"$f":"Розваги[[#This Row],[Прогнозовані витрати]]-Розваги[[#This Row],[Фактичні витрати]]","v":{"v":0,"d":"0₴"}}]
[null,"Матеріали",null,null,{"$f":"Побут[[#This Row],[Прогнозовані витрати]]-Побут[[#This Row],[Фактичні витрати]]","v":{"v":0,"d":"0₴"}},null,"Інше",null,null,{"$f":"Розваги[[#This Row],[Прогнозовані витрати]]-Розваги[[#This Row],[Фактичні витрати]]","v":{"v":0,"d":"0₴"}}]
[null,"Інше",null,null,{"$f":"Побут[[#This Row],[Прогнозовані витрати]]-Побут[[#This Row],[Фактичні витрати]]","v":{"v":0,"d":"0₴"}},null,"Підсумок",{"$f":"SUBTOTAL(109,Розваги[Прогнозовані витрати])","v":{"v":0,"d":"0₴"}},{"$f":"SUBTOTAL(109,Розваги[Фактичні витрати])","v":{"v":50,"d":"50₴"}},{"$f":"SUBTOTAL(109,Розваги[Різниця])","v":{"v":-50,"d":"-50₴"}}]
[null,"Підсумок",{"$f":"SUBTOTAL(109,Побут[Прогнозовані витрати])","v":{"v":1810,"d":"1,810₴"}},{"$f":"SUBTOTAL(109,Побут[Фактичні витрати])","v":{"v":1740,"d":"1,740₴"}},{"$f":"SUBTOTAL(109,Побут[Різниця])","v":{"v":70,"d":"70₴"}}]
[{"$nulls":6},"БОРГИ","Прогнозовані витрати","Фактичні витрати","Різниця"]
[null,"ТРАНСПОРТ","Прогнозовані витрати","Фактичні витрати","Різниця",null,"Особисті",null,null,{"$f":"Борги[[#This Row],[Прогнозовані витрати]]-Борги[[#This Row],[Фактичні витрати]]","v":{"v":0,"d":"0₴"}}]
[null,"Плата за авто",{"v":250,"d":"250₴"},{"v":250,"d":"250₴"},{"$f":"Транспорт[[#This Row],[Прогнозовані витрати]]-Транспорт[[#This Row],[Фактичні витрати]]","v":{"v":0,"d":"0₴"}},null,"На енергозбереження",null,null,{"$f":"Борги[[#This Row],[Прогнозовані витрати]]-Борги[[#This Row],[Фактичні витрати]]","v":{"v":0,"d":"0₴"}}]
[null,"Автобус/таксі",null,null,{"$f":"Транспорт[[#This Row],[Прогнозовані витрати]]-Транспорт[[#This Row],[Фактичні витрати]]","v":{"v":0,"d":"0₴"}},null,"Кредитна картка",null,null,{"$f":"Борги[[#This Row],[Прогнозовані витрати]]-Борги[[#This Row],[Фактичні витрати]]","v":{"v":0,"d":"0₴"}}]
[null,"Страхування",null,null,{"$f":"Транспорт[[#This Row],[Прогнозовані витрати]]-Транспорт[[#This Row],[Фактичні витрати]]","v":{"v":0,"d":"0₴"}},null,"Кредитна картка",null,null,{"$f":"Борги[[#This Row],[Прогнозовані витрати]]-Борги[[#This Row],[Фактичні витрати]]","v":{"v":0,"d":"0₴"}}]
[null,"Ліцензування",null,null,{"$f":"Транспорт[[#This Row],[Прогнозовані витрати]]-Транспорт[[#This Row],[Фактичні витрати]]","v":{"v":0,"d":"0₴"}},null,"Кредитна картка",null,null,{"$f":"Борги[[#This Row],[Прогнозовані витрати]]-Борги[[#This Row],[Фактичні витрати]]","v":{"v":0,"d":"0₴"}}]
[null,"Паливо",null,null,{"$f":"Транспорт[[#This Row],[Прогнозовані витрати]]-Транспорт[[#This Row],[Фактичні витрати]]","v":{"v":0,"d":"0₴"}},null,"Інше",null,null,{"$f":"Борги[[#This Row],[Прогнозовані витрати]]-Борги[[#This Row],[Фактичні витрати]]","v":{"v":0,"d":"0₴"}}]
[null,"Обслуговування",null,null,{"$f":"Транспорт[[#This Row],[Прогнозовані витрати]]-Транспорт[[#This Row],[Фактичні витрати]]","v":{"v":0,"d":"0₴"}},null,"Підсумок",{"$f":"SUBTOTAL(109,Борги[Прогнозовані витрати])","v":{"v":0,"d":"0₴"}},{"$f":"SUBTOTAL(109,Борги[Фактичні витрати])","v":{"v":0,"d":"0₴"}},{"$f":"SUBTOTAL(109,Борги[Різниця])","v":{"v":0,"d":"0₴"}}]
[null,"Інше",null,null,{"$f":"Транспорт[[#This Row],[Прогнозовані витрати]]-Транспорт[[#This Row],[Фактичні витрати]]","v":{"v":0,"d":"0₴"}}]
[null,"Підсумок",{"$f":"SUBTOTAL(109,Транспорт[Прогнозовані витрати])","v":{"v":250,"d":"250₴"}},{"$f":"SUBTOTAL(109,Транспорт[Фактичні витрати])","v":{"v":250,"d":"250₴"}},{"$f":"SUBTOTAL(109,Транспорт[Різниця])","v":{"v":0,"d":"0₴"}},null,"ПОДАТКИ","Прогнозовані витрати","Фактичні витрати","Різниця"]
[{"$nulls":6},"На доходи",null,null,{"$f":"Податки[[#This Row],[Прогнозовані витрати]]-Податки[[#This Row],[Фактичні витрати]]","v":{"v":0,"d":"0₴"}}]
[null,"СТРАХУВАННЯ","Прогнозовані витрати","Фактичні витрати","Різниця",null,"На майно",null,null,{"$f":"Податки[[#This Row],[Прогнозовані витрати]]-Податки[[#This Row],[Фактичні витрати]]","v":{"v":0,"d":"0₴"}}]
[null,"Дім",null,null,{"$f":"Страхування[[#This Row],[Прогнозовані витрати]]-Страхування[[#This Row],[Фактичні витрати]]","v":{"v":0,"d":"0₴"}},null,"Місцеві",null,null,{"$f":"Податки[[#This Row],[Прогнозовані витрати]]-Податки[[#This Row],[Фактичні витрати]]","v":{"v":0,"d":"0₴"}}]
[null,"Здоров’я",null,null,{"$f":"Страхування[[#This Row],[Прогнозовані витрати]]-Страхування[[#This Row],[Фактичні витрати]]","v":{"v":0,"d":"0₴"}},null,"Інше",null,null,{"$f":"Податки[[#This Row],[Прогнозовані витрати]]-Податки[[#This Row],[Фактичні витрати]]","v":{"v":0,"d":"0₴"}}]
[null,"Життя",null,null,{"$f":"Страхування[[#This Row],[Прогнозовані витрати]]-Страхування[[#This Row],[Фактичні витрати]]","v":{"v":0,"d":"0₴"}},null,"Підсумок",{"$f":"SUBTOTAL(109,Податки[Прогнозовані витрати])","v":{"v":0,"d":"0₴"}},{"$f":"SUBTOTAL(109,Податки[Фактичні витрати])","v":{"v":0,"d":"0₴"}},{"$f":"SUBTOTAL(109,Податки[Різниця])","v":{"v":0,"d":"0₴"}}]
[null,"Інше",null,null,{"$f":"Страхування[[#This Row],[Прогнозовані витрати]]-Страхування[[#This Row],[Фактичні витрати]]","v":{"v":0,"d":"0₴"}}]
[null,"Підсумок",{"$f":"SUBTOTAL(109,Страхування[Прогнозовані витрати])","v":{"v":0,"d":"0₴"}},{"$f":"SUBTOTAL(109,Страхування[Фактичні витрати])","v":{"v":0,"d":"0₴"}},{"$f":"SUBTOTAL(109,Страхування[Різниця])","v":{"v":0,"d":"0₴"}},null,"ЗАОЩАДЖЕННЯ АБО ІНВЕСТИЦІЇ","Прогнозовані витрати","Фактичні витрати","Різниця"]
[{"$nulls":6},"Пенсійний внесок",null,null,{"$f":"ЗаощадженняІнвестиції[[#This Row],[Прогнозовані витрати]]-ЗаощадженняІнвестиції[[#This Row],[Фактичні витрати]]","v":{"v":0,"d":"0₴"}}]
[null,"ХАРЧУВАННЯ","Прогнозовані витрати","Фактичні витрати","Різниця",null,"Депозити",null,null,{"$f":"ЗаощадженняІнвестиції[[#This Row],[Прогнозовані витрати]]-ЗаощадженняІнвестиції[[#This Row],[Фактичні витрати]]","v":{"v":0,"d":"0₴"}}]
[null,"Продукти",null,null,{"$f":"Харчування[[#This Row],[Прогнозовані витрати]]-Харчування[[#This Row],[Фактичні витрати]]","v":{"v":0,"d":"0₴"}},null,"Інше",null,null,{"$f":"ЗаощадженняІнвестиції[[#This Row],[Прогнозовані витрати]]-ЗаощадженняІнвестиції[[#This Row],[Фактичні витрати]]","v":{"v":0,"d":"0₴"}}]
[null,"Ресторани/кафе",null,null,{"$f":"Харчування[[#This Row],[Прогнозовані витрати]]-Харчування[[#This Row],[Фактичні витрати]]","v":{"v":0,"d":"0₴"}},null,"Підсумок",{"$f":"SUBTOTAL(109,ЗаощадженняІнвестиції[Прогнозовані витрати])","v":{"v":0,"d":"0₴"}},{"$f":"SUBTOTAL(109,ЗаощадженняІнвестиції[Фактичні витрати])","v":{"v":0,"d":"0₴"}},{"$f":"SUBTOTAL(109,ЗаощадженняІнвестиції[Різниця])","v":{"v":0,"d":"0₴"}}]
[null,"Інше",null,null,{"$f":"Харчування[[#This Row],[Прогнозовані витрати]]-Харчування[[#This Row],[Фактичні витрати]]","v":{"v":0,"d":"0₴"}}]
[null,"Підсумок",{"$f":"SUBTOTAL(109,Харчування[Прогнозовані витрати])","v":{"v":0,"d":"0₴"}},{"$f":"SUBTOTAL(109,Харчування[Фактичні витрати])","v":{"v":0,"d":"0₴"}},{"$f":"SUBTOTAL(109,Харчування[Різниця])","v":{"v":0,"d":"0₴"}},null,"ПОДАРУНКИ Й ПОЖЕРТВИ","Прогнозовані витрати","Фактичні витрати","Різниця"]
[{"$nulls":6},"На благодійність 1",null,null,{"$f":"ПодарункиПожертви[[#This Row],[Прогнозовані витрати]]-ПодарункиПожертви[[#This Row],[Фактичні витрати]]","v":{"v":0,"d":"0₴"}}]
[null,"ДОМАШНІ УЛЮБЛЕНЦІ","Прогнозовані витрати","Фактичні витрати","Різниця",null,"На благодійність 2",null,null,{"$f":"ПодарункиПожертви[[#This Row],[Прогнозовані витрати]]-ПодарункиПожертви[[#This Row],[Фактичні витрати]]","v":{"v":0,"d":"0₴"}}]
[null,"Їжа",null,null,{"$f":"ДомашніУлюбленці[[#This Row],[Прогнозовані витрати]]-ДомашніУлюбленці[[#This Row],[Фактичні витрати]]","v":{"v":0,"d":"0₴"}},null,"На благодійність 3",null,null,{"$f":"ПодарункиПожертви[[#This Row],[Прогнозовані витрати]]-ПодарункиПожертви[[#This Row],[Фактичні витрати]]","v":{"v":0,"d":"0₴"}}]
[null,"Медицина",null,null,{"$f":"ДомашніУлюбленці[[#This Row],[Прогнозовані витрати]]-ДомашніУлюбленці[[#This Row],[Фактичні витрати]]","v":{"v":0,"d":"0₴"}},null,"Підсумок",{"$f":"SUBTOTAL(109,ПодарункиПожертви[Прогнозовані витрати])","v":{"v":0,"d":"0₴"}},{"$f":"SUBTOTAL(109,ПодарункиПожертви[Фактичні витрати])","v":{"v":0,"d":"0₴"}},{"$f":"SUBTOTAL(109,ПодарункиПожертви[Різниця])","v":{"v":0,"d":"0₴"}}]
[null,"Грумінг",null,null,{"$f":"ДомашніУлюбленці[[#This Row],[Прогнозовані витрати]]-ДомашніУлюбленці[[#This Row],[Фактичні витрати]]","v":{"v":0,"d":"0₴"}}]
[null,"Іграшки",null,null,{"$f":"ДомашніУлюбленці[[#This Row],[Прогнозовані витрати]]-ДомашніУлюбленці[[#This Row],[Фактичні витрати]]","v":{"v":0,"d":"0₴"}},null,"ЮРИДИЧНІ ПОСЛУГИ","Прогнозовані витрати","Фактичні витрати","Різниця"]
[null,"Інше",null,null,{"$f":"ДомашніУлюбленці[[#This Row],[Прогнозовані витрати]]-ДомашніУлюбленці[[#This Row],[Фактичні витрати]]","v":{"v":0,"d":"0₴"}},null,"Адвокат",null,null,{"$f":"ЮридичніПослуги[[#This Row],[Прогнозовані витрати]]-ЮридичніПослуги[[#This Row],[Фактичні витрати]]","v":{"v":0,"d":"0₴"}}]
[null,"Підсумок",{"$f":"SUBTOTAL(109,ДомашніУлюбленці[Прогнозовані витрати])","v":{"v":0,"d":"0₴"}},{"$f":"SUBTOTAL(109,ДомашніУлюбленці[Фактичні витрати])","v":{"v":0,"d":"0₴"}},{"$f":"SUBTOTAL(109,ДомашніУлюбленці[Різниця])","v":{"v":0,"d":"0₴"}},null,"Аліменти",null,null,{"$f":"ЮридичніПослуги[[#This Row],[Прогнозовані витрати]]-ЮридичніПослуги[[#This Row],[Фактичні витрати]]","v":{"v":0,"d":"0₴"}}]
[{"$nulls":6},"Судові виплати",null,null,{"$f":"ЮридичніПослуги[[#This Row],[Прогнозовані витрати]]-ЮридичніПослуги[[#This Row],[Фактичні витрати]]","v":{"v":0,"d":"0₴"}}]
[null,"ДОГЛЯД ЗА СОБОЮ","Прогнозовані витрати","Фактичні витрати","Різниця",null,"Інше",null,null,{"$f":"ЮридичніПослуги[[#This Row],[Прогнозовані витрати]]-ЮридичніПослуги[[#This Row],[Фактичні витрати]]","v":{"v":0,"d":"0₴"}}]
[null,"Медицина",null,null,{"$f":"ДоглядЗаСобою[[#This Row],[Прогнозовані витрати]]-ДоглядЗаСобою[[#This Row],[Фактичні витрати]]","v":{"v":0,"d":"0₴"}},null,"Підсумок",{"$f":"SUBTOTAL(109,ЮридичніПослуги[Прогнозовані витрати])","v":{"v":0,"d":"0₴"}},{"$f":"SUBTOTAL(109,ЮридичніПослуги[Фактичні витрати])","v":{"v":0,"d":"0₴"}},{"$f":"SUBTOTAL(109,ЮридичніПослуги[Різниця])","v":{"v":0,"d":"0₴"}}]
[null,"Волосся/нігті",null,null,{"$f":"ДоглядЗаСобою[[#This Row],[Прогнозовані витрати]]-ДоглядЗаСобою[[#This Row],[Фактичні витрати]]","v":{"v":0,"d":"0₴"}}]
[null,"Одяг",null,null,{"$f":"ДоглядЗаСобою[[#This Row],[Прогнозовані витрати]]-ДоглядЗаСобою[[#This Row],[Фактичні витрати]]","v":{"v":0,"d":"0₴"}}]
[null,"Хімчистка",null,null,{"$f":"ДоглядЗаСобою[[#This Row],[Прогнозовані витрати]]-ДоглядЗаСобою[[#This Row],[Фактичні витрати]]","v":{"v":0,"d":"0₴"}}]
[null,"Спортзал",null,null,{"$f":"ДоглядЗаСобою[[#This Row],[Прогнозовані витрати]]-ДоглядЗаСобою[[#This Row],[Фактичні витрати]]","v":{"v":0,"d":"0₴"}}]
[null,"Екскурсії тощо",null,null,{"$f":"ДоглядЗаСобою[[#This Row],[Прогнозовані витрати]]-ДоглядЗаСобою[[#This Row],[Фактичні витрати]]","v":{"v":0,"d":"0₴"}}]
[null,"Інше",null,null,{"$f":"ДоглядЗаСобою[[#This Row],[Прогнозовані витрати]]-ДоглядЗаСобою[[#This Row],[Фактичні витрати]]","v":{"v":0,"d":"0₴"}}]
[null,"Підсумок",{"$f":"SUBTOTAL(109,ДоглядЗаСобою[Прогнозовані витрати])","v":{"v":0,"d":"0₴"}},{"$f":"SUBTOTAL(109,ДоглядЗаСобою[Фактичні витрати])","v":{"v":0,"d":"0₴"}},{"$f":"SUBTOTAL(109,ДоглядЗаСобою[Різниця])","v":{"v":0,"d":"0₴"}}]